bitfinex-derivatives/quotes_SOLF0:USTF0_20260105
["timestamp","ask_amount","ask_price","bid_price","bid_amount"]
[1767635992138,0.38791389,136.58,136.51,6.6469183]
[1767635992641,0.38791389,136.58,136.52,6.6469183]
[1767635993236,0.38791389,136.58,136.51,6.6469183]
[1767635993840,6.97921389,136.58,136.52,6.6469183]
[1767635994242,86.52,136.6,136.52,6.6469183]
[1767635994541,6.5907,136.59,136.52,13.2409183]
[1767635994838,86.52,136.6,136.53,6.6469183]
[1767635995242,86.89474782,136.6,136.53,6.6469183]
[1767635996547,6.5907,136.59,136.53,6.6469183]
[1767635997148,86.89474782,136.6,136.53,6.6469183]
[1767635997735,86.89474782,136.6,136.54,6.6469183]
[1767635998646,93.48494782,136.6,136.54,6.6469183]
[1767636000246,0.37474782,136.63,136.54,6.6469183]
[1767636000450,0.37474782,136.63,136.56,6.6469183]
[1767636000840,0.37474782,136.63,136.55,8.75314253]
[1767636001142,0.37474782,136.63,136.57,6.71347512]
[1767636001348,0.37474782,136.63,136.56,6.71347512]
[1767636001744,6.5893,136.62,136.56,6.71347512]
[1767636002553,0.37474782,136.63,136.56,6.71347512]
[1767636002747,86.90290603,136.66,136.57,6.71347512]
[1767636003053,6.97080603,136.65,136.58,6.71347512]
[1767636003347,102.462,136.68,136.57,6.5915]
[1767636003348,86.90290603,136.67,136.59,6.71347512]
[1767636003549,0.38290603,136.69,136.6,13.30337512]
[1767636003743,86.52,136.7,136.61,6.71347512]
[1767636004048,86.52,136.7,136.63,6.71347512]
[1767636004642,0.38290603,136.72,136.63,13.30197512]
[1767636004953,0.38290603,136.72,136.63,6.71347512]
[1767636005155,0.38290603,136.7,136.63,6.71347512]
[1767636005340,0.38290603,136.69,136.6,6.71347512]
[1767636005746,86.88290603,136.69,136.62,6.71347512]
[1767636006048,86.88290603,136.69,136.61,6.71347512]
[1767636006552,0.38290603,136.71,136.6,6.71347512]
[1767636006857,86.88290603,136.71,136.61,6.71347512]
[1767636007046,0.38290603,136.7,136.61,6.71347512]
[1767636007349,86.5,136.71,136.61,6.71347512]
[1767636007548,86.5,136.71,136.6,102.5111]
[1767636007549,86.5,136.71,136.62,6.71347512]
[1767636007754,86.88290603,136.71,136.62,6.71347512]
[1767636008344,86.88290603,136.71,136.61,6.71347512]
[1767636008545,86.88290603,136.71,136.62,6.589]
[1767636009758,0.38290603,136.7,136.61,6.71347512]
[1767636010255,0.38290603,136.7,136.62,6.5889]
[1767636010555,0.38290603,136.7,136.62,6.71347512]
[1767636011054,0.38290603,136.74,136.63,6.71347512]
[1767636011549,0.38290603,136.7,136.63,6.71347512]
[1767636011749,0.38290603,136.7,136.56,102.5408]
[1767636011750,0.38290603,136.68,136.59,6.71347512]
[1767636011950,0.38290603,136.68,136.58,6.71347512]
[1767636012155,0.38290603,136.68,136.57,6.71347512]
[1767636012356,6.5875,136.66,136.57,6.71347512]
[1767636012657,0.38290603,136.66,136.58,6.71347512]
[1767636013457,0.38290603,136.66,136.58,13.30437512]
[1767636014259,0.38290603,136.66,136.59,6.5903]
[1767636014661,0.38290603,136.66,136.57,6.71347512]
[1767636014855,6.97170603,136.63,136.55,13.30577512]
[1767636015160,0.38290603,136.63,136.55,13.30577512]
[1767636015554,0.38290603,136.63,136.56,6.5918]
[1767636015750,86.86290603,136.66,136.56,6.71347512]
[1767636015947,0.38290603,136.66,136.57,6.71347512]
[1767636016351,0.38290603,136.69,136.59,6.71347512]
[1767636016652,0.38290603,136.69,136.6,102.5141]
[1767636016855,6.5852,136.71,136.63,6.5886]
[1767636017061,6.96810603,136.71,136.61,6.71347512]
[1767636017258,0.38290603,136.71,136.62,6.5891]
[1767636017451,0.38290603,136.71,136.61,6.71347512]
[1767636017761,6.96790603,136.71,136.63,6.5886]
[1767636020058,0.38290603,136.69,136.61,6.5894]
[1767636020258,0.38290603,136.69,136.6,6.71347512]
[1767636020461,0.38290603,136.69,136.61,6.71347512]
[1767636020855,6.96820603,136.71,136.61,6.71347512]
[1767636021252,6.5854,136.7,136.62,6.5891]
[1767636021665,0.38290603,136.71,136.61,6.71347512]
[1767636021867,0.38290603,136.71,136.6,6.71347512]
[1767636022367,0.38290603,136.71,136.61,6.71347512]
[1767636022865,6.96840603,136.7,136.61,6.5893]
[1767636023164,0.38290603,136.69,136.58,6.71347512]
[1767636023364,0.38290603,136.66,136.58,6.71347512]
[1767636023554,0.38290603,136.66,136.56,6.71347512]
[1767636023758,0.38290603,136.66,136.55,6.71347512]
[1767636024255,0.38290603,136.66,136.56,6.71347512]
[1767636024459,0.38290603,136.66,136.54,202.28538671]
[1767636024460,0.38290603,136.64,136.55,13.30577512]
[1767636025361,102.4702,136.66,136.55,6.5923]
[1767636025362,6.97170603,136.63,136.55,6.5923]
[1767636025561,0.38290603,136.66,136.55,6.71347512]
[1767636025958,6.97110603,136.65,136.57,6.5915]
[1767636026561,6.97110603,136.65,136.55,6.71347512]
[1767636026562,0.38290603,136.65,136.59,6.5906]
[1767636026767,93.0668,136.67,136.59,6.5906]
[1767636027077,0.38290603,136.66,136.56,6.71347512]
[1767636027376,0.38290603,136.66,136.57,6.71347512]
[1767636027966,6.97040603,136.66,136.57,13.30477512]
[1767636028269,6.97040603,136.66,136.57,6.5913]
[1767636028472,6.97040603,136.66,136.56,6.71347512]
[1767636028672,6.97090603,136.65,136.56,13.30537512]
[1767636028859,6.97090603,136.65,136.55,6.71347512]
[1767636029062,6.97090603,136.65,136.56,6.71347512]
[1767636030575,6.97090603,136.65,136.57,6.5915]
[1767636031878,0.39917877,136.64,136.56,6.71347512]
[1767636032174,0.39917877,136.64,136.55,6.71347512]
[1767636032373,0.39917877,136.61,136.55,6.5926]
[1767636032573,0.39917877,136.61,136.52,6.71347512]
[1767636032969,0.39917877,136.59,136.5,41.81316683]
[1767636033178,0.39917877,136.58,136.5,35.09969171]
[1767636033480,0.39917877,136.56,136.48,13.30927512]
[1767636034174,6.5927,136.55,136.48,13.30927512]
[1767636034369,6.5927,136.55,136.48,6.5958]
[1767636034785,0.39917877,136.56,136.48,6.5958]
[1767636035081,4.89202295,136.59,136.47,6.71347512]
[1767636035269,0.39917877,136.59,136.47,6.71347512]
[1767636035470,6.99037877,136.58,136.47,6.71347512]
[1767636035971,6.99037877,136.58,136.5,6.5948]
[1767636036376,6.5902,136.6,136.49,102.5949]
[1767636036572,6.5902,136.6,136.5,6.71347512]
[1767636036774,86.89917877,136.61,136.51,6.71347512]
[1767636036775,0.39917877,136.61,136.51,6.71347512]
[1767636036975,6.5896,136.62,136.51,109.29247512]
[1767636037170,6.5896,136.62,136.52,6.71347512]
[1767636038680,6.5896,136.62,136.54,6.5929]
[1767636039783,6.5898,136.61,136.54,6.5929]
[1767636040984,6.98897877,136.61,136.54,6.5929]
[1767636041184,6.98897877,136.61,136.53,6.5933]
[1767636041576,6.5898,136.61,136.52,6.71347512]
[1767636042276,102.88757877,136.64,136.52,6.71347512]
[1767636042277,6.5892,136.63,136.52,6.71347512]
[1767636042675,0.39917877,136.62,136.53,6.5932]
[1767636042882,0.39917877,136.62,136.52,6.71347512]
[1767636043073,0.39917877,136.61,136.52,6.71347512]
[1767636043278,0.39917877,136.61,136.51,6.71347512]
[1767636043483,0.39917877,136.58,136.5,6.5946]
[1767636043779,0.39917877,136.58,136.47,6.71347512]
[1767636043780,0.39917877,136.57,136.47,6.71347512]
[1767636043974,0.39917877,136.54,136.47,6.71347512]
[1767636044276,0.39917877,136.54,136.44,6.71347512]
[1767636044584,0.39917877,136.53,136.44,6.71347512]
[1767636044787,0.39917877,136.53,136.43,99.83147512]
[1767636045679,6.5941,136.52,136.43,99.83147512]
[1767636045884,0.39917877,136.52,136.43,6.71347512]
[1767636046086,0.39917877,136.52,136.41,13.31257512]
[1767636046281,0.39917877,136.52,136.4,6.71347512]
[1767636046591,0.39917877,136.52,136.42,6.5987]
[1767636046982,0.39917877,136.52,136.41,6.71347512]
[1767636047377,0.39917877,136.52,136.44,6.5978]
[1767636048782,0.39917877,136.52,136.42,6.5987]
[1767636049492,6.5947,136.51,136.42,6.5987]
[1767636049690,0.39917877,136.51,136.42,6.5987]
[1767636049993,6.5952,136.5,136.4,6.5995]
[1767636050184,0.39917877,136.51,136.41,102.6564]
[1767636050793,0.39917877,136.51,136.42,6.5985]
[1767636051490,0.39917877,136.51,136.38,143.80653414]
[1767636051685,0.39917877,136.51,136.38,137.09305902]
[1767636052588,6.5957,136.49,136.41,6.5993]
[1767636052892,0.39917877,136.51,136.38,34.41685902]
[1767636052893,0.39917877,136.48,136.38,34.41685902]
[1767636053492,0.39917877,136.48,136.37,189.224]
[1767636053687,107.07824418,136.51,136.37,189.224]
[1767636053688,6.98495703,136.51,136.41,6.5991]
[1767636054092,6.98495703,136.51,136.39,102.6693]
[1767636054787,6.5952,136.5,136.38,113.8843193]
[1767636054990,0.39015703,136.49,136.38,102.678]
[1767636055594,0.39015703,136.49,136.41,6.5992]
[1767636056094,6.98585703,136.49,136.39,6.6]
[1767636056294,0.39015703,136.48,136.39,6.6]
[1767636056788,0.39015703,136.48,136.4,6.5996]
[1767636057200,6.98645703,136.48,136.37,86.54]
[1767636057594,0.39015703,136.48,136.37,86.54]
[1767636057896,0.39015703,136.47,136.37,86.54]
[1767636058082,6.98785703,136.45,136.33,113.9216193]
[1767636058282,0.39015703,136.44,136.33,86.58]
[1767636059386,6.98885703,136.43,136.34,6.6026]
[1767636059598,0.39015703,136.43,136.33,86.58]
[1767636059899,0.39015703,136.45,136.37,6.601]
[1767636060192,0.39015703,136.45,136.33,86.58]
[1767636060699,0.39015703,136.43,136.33,86.58]
[1767636060893,0.42224664,136.45,136.33,86.58]
[1767636061194,0.42224664,136.43,136.34,6.6025]
[1767636061495,0.42224664,136.42,136.29,189.3224]
[1767636061697,6.6001,136.4,136.3,6.6044]
[1767636061899,103.07604664,136.42,136.29,86.58]
[1767636061900,0.42224664,136.39,136.29,86.58]
[1767636062198,0.42224664,136.39,136.27,34.25517195]
[1767636062396,0.42224664,136.38,136.27,137.01387195]
[1767636062592,0.42224664,136.38,136.27,34.25517195]
[1767636062791,0.42224664,136.38,136.24,102.7837]
[1767636062993,0.42224664,136.38,136.26,102.7696]
[1767636063406,0.42224664,136.38,136.27,102.7619]
[1767636063900,0.42224664,136.37,136.29,6.605]
[1767636064102,0.42224664,136.37,136.25,189.3772]
[1767636064396,189.2507,136.4,136.27,6.606]
[1767636064397,0.42224664,136.35,136.27,6.606]
[1767636064599,6.602,136.36,136.21,107.29724418]
[1767636064600,86.6,136.34,136.21,107.29724418]
[1767636064793,0.42224664,136.33,136.22,102.7999]
[1767636064994,0.42224664,136.32,136.24,6.6074]
[1767636065394,0.42224664,136.32,136.21,86.6]
[1767636065597,0.42224664,136.28,136.18,6.6102]
[1767636065901,87.02224664,136.28,136.17,102.8346]
[1767636066492,0.42224664,136.28,136.19,6.6097]
[1767636066702,93.2253,136.29,136.19,6.6097]
[1767636066905,93.64754664,136.29,136.19,6.6097]
[1767636067102,0.42224664,136.29,136.2,6.6093]
[1767636068405,87.06224664,136.31,136.19,102.8174]
[1767636069093,0.42224664,136.3,136.2,6.6093]
[1767636069294,0.42224664,136.3,136.17,102.8354]
[1767636069497,0.42224664,136.3,136.18,102.8307]
[1767636069702,0.42224664,136.29,136.16,108.60987608]
[1767636069905,0.42224664,136.29,136.16,104.1170319]
[1767636070303,0.42224664,136.29,136.15,4.49284418]
[1767636070304,7.02864664,136.27,136.17,6.6107]
[1767636070503,0.42224664,136.25,136.14,189.4569]
[1767636070699,0.42224664,136.25,136.14,86.6]
[1767636070900,7.03004664,136.24,136.14,86.6]
[1767636071304,7.03004664,136.24,136.14,6.6122]
[1767636072107,0.42224664,136.23,136.12,6.6134]
[1767636073005,0.42224664,136.22,136.13,6.6127]
[1767636073200,102.7822,136.25,136.14,102.8598]
[1767636073201,86.68,136.24,136.14,102.8598]
[1767636073806,86.68,136.24,136.13,102.8648]
[1767636073999,93.70954664,136.25,136.13,102.8648]
[1767636074202,0.42224664,136.24,136.13,102.8648]
[1767636074406,7.03004664,136.24,136.14,6.6122]
[1767636074909,0.42224664,136.23,136.14,6.6122]
[1767636075098,7.03054664,136.23,136.12,6.6133]
[1767636075410,86.7,136.25,136.14,102.8606]
[1767636075608,86.7,136.25,136.16,6.6112]
[1767636075997,86.7,136.26,136.16,102.8455]
[1767636076311,87.12224664,136.26,136.16,6.6112]
[1767636076513,0.42224664,136.25,136.16,6.6112]
[1767636077703,0.42224664,136.25,136.14,6.6122]
[1767636077903,7.02954664,136.25,136.13,102.8681]
[1767636078099,7.02954664,136.25,136.12,189.5751]
[1767636078100,0.42224664,136.25,136.14,6.6124]
[1767636078804,7.03044664,136.23,136.14,6.6124]
[1767636079204,0.42224664,136.22,136.12,93.3131]
[1767636079808,0.42224664,136.22,136.12,86.7]
[1767636080113,0.42224664,136.22,136.14,6.6122]
[1767636080310,7.03094664,136.22,136.12,86.7]
[1767636080608,7.03094664,136.22,136.13,6.6127]
[1767636081109,7.03144664,136.21,136.12,86.7]
[1767636081313,7.03144664,136.21,136.11,41.70124879]
[1767636081314,0.42224664,136.21,136.11,41.70124879]
[1767636081612,86.72,136.2,136.11,41.70124879]
[1767636082016,87.14224664,136.2,136.11,41.70124879]
[1767636082416,93.75194664,136.2,136.11,41.70124879]
[1767636083013,6.6102,136.19,136.11,41.70124879]
[1767636083315,87.14224664,136.2,136.11,35.08774879]
[1767636084615,0.42224664,136.18,136.08,86.72]
[1767636084815,0.42224664,136.18,136.07,102.9129]
[1767636085217,7.03334664,136.17,136.09,6.6147]
[1767636086017,7.03334664,136.17,136.07,6.6157]
[1767636086018,6.6117,136.16,136.07,6.6157]
[1767636086213,7.03394664,136.16,136.07,6.6157]
[1767636086417,0.42224664,136.16,136.06,102.9207]
[1767636087322,0.42224664,136.16,136.09,6.6147]
[1767636087518,0.42224664,136.16,136.04,86.74]
[1767636087915,0.42224664,136.16,136.04,189.6726]
[1767636088118,0.42224664,136.16,136.05,102.929]
[1767636088316,0.42224664,136.16,136.06,102.9178]
[1767636088521,0.42224664,136.16,136.09,6.6146]
[1767636088919,7.03254664,136.19,136.1,6.6141]
[1767636089119,0.42224664,136.19,136.09,102.8981]
[1767636089423,7.03094664,136.22,136.1,189.6484]
[1767636089617,0.42224664,136.22,136.11,102.8831]
[1767636090314,6.6093,136.21,136.13,6.6125]
[1767636090521,0.42224664,136.22,136.11,102.8827]
[1767636091421,86.76,136.24,136.15,6.6119]
[1767636091617,87.18294352,136.24,136.15,6.6119]
[1767636092427,0.42294352,136.23,136.15,6.6119]
[1767636092725,0.42294352,136.23,136.16,6.6111]
[1767636092925,0.42294352,136.26,136.14,102.8581]
[1767636093127,0.42294352,136.26,136.15,6.6116]
[1767636093128,7.03044352,136.25,136.15,6.6116]
[1767636093326,7.03044352,136.25,136.14,102.8581]
[1767636093627,0.42294352,136.25,136.14,102.8581]
[1767636094021,0.42294352,136.25,136.13,102.8628]
[1767636094822,0.42294352,136.22,136.13,6.6126]
[1767636095026,0.42294352,136.22,136.08,189.6624]
[1767636095225,0.42294352,136.22,136.1,102.887]
[1767636095424,6.6091,136.21,136.13,6.6127]
[1767636095629,0.42294352,136.21,136.09,102.8979]
[1767636095821,0.42294352,136.19,136.08,86.76]
[1767636096420,7.03424352,136.17,136.08,86.76]
[1767636096822,0.42294352,136.17,136.08,86.76]
[1767636097022,0.42294352,136.17,136.1,6.6143]
[1767636097924,7.03414352,136.17,136.08,86.76]
[1767636098433,6.6106,136.18,136.1,6.614]
[1767636098729,7.03354352,136.18,136.1,6.614]
[1767636098929,7.03354352,136.18,136.11,6.6138]
[1767636099729,0.42294352,136.18,136.11,6.6138]
[1767636101228,0.42294352,136.18,136.08,189.6628]
[1767636101431,87.20294352,136.21,136.12,6.6132]
[1767636101731,0.42294352,136.21,136.1,102.8909]
[1767636102421,7.03204352,136.21,136.13,6.6128]
[1767636102622,0.42294352,136.21,136.13,6.6128]
[1767636102932,0.42294352,136.2,136.07,102.9134]
[1767636103132,0.42294352,136.2,136.07,189.6934]
[1767636103520,0.42294352,136.18,136.1,6.614]
[1767636103723,0.42294352,136.18,136.07,86.78]
[1767636103929,0.42294352,136.17,136.04,102.9336]
[1767636104127,0.42294352,136.15,136.04,102.9336]
[1767636104521,0.42294352,136.15,136.05,102.9286]
[1767636105329,7.03494352,136.15,136.05,102.9286]
[1767636105534,7.03494352,136.15,136.04,102.9336]
[1767636106434,7.03494352,136.15,136.04,109.64707512]
[1767636106635,7.03494352,136.15,136.08,6.6153]
[1767636106830,0.42294352,136.15,136.08,6.6153]
[1767636107232,0.42294352,136.15,136.06,6.6159]
[1767636107433,7.03504352,136.15,136.04,109.64707512]
[1767636107828,6.6125,136.14,136.05,6.6164]
[1767636108236,6.6125,136.14,136.04,6.71347512]
[1767636108639,0.42294352,136.15,136.04,109.64297512]
[1767636108836,0.42294352,136.15,136.04,6.71347512]
[1767636109033,6.6125,136.14,136.07,6.6158]
[1767636109338,0.42294352,136.15,136.07,6.6158]
[1767636109929,7.03514352,136.15,136.08,6.6152]
[1767636110437,7.03514352,136.15,136.05,6.71347512]
[1767636110939,86.78,136.16,136.06,6.71347512]
[1767636111135,0.42294352,136.18,136.07,109.62457512]
[1767636111331,5.71026312,136.17,136.07,109.62457512]
[1767636111536,0.42294352,136.17,136.07,6.71347512]
[1767636112141,6.1333965,136.16,136.07,6.6154]
[1767636112445,0.42294352,136.16,136.07,6.6154]
[1767636112643,0.42294352,136.16,136.08,6.6153]
[1767636112831,0.42294352,136.16,136.04,8.75314253]
[1767636113144,0.42294352,136.16,136.04,6.73510226]
[1767636113539,0.42294352,136.16,136.03,109.67560226]
[1767636113739,0.42294352,136.16,136.04,6.73510226]
[1767636113941,7.01825534,136.15,136.07,6.6157]
[1767636114140,7.01825534,136.15,136.05,6.73510226]
[1767636114443,103.23595534,136.19,136.06,196.45550226]
[1767636114639,190.03595534,136.19,136.07,6.73510226]
[1767636115037,0.40615534,136.18,136.1,6.6144]
[1767636115946,116.0121,136.23,136.09,109.63350226]
[1767636115947,87.20615534,136.21,136.09,109.63350226]
[1767636116140,87.20615534,136.21,136.1,6.73510226]
[1767636116342,87.20615534,136.21,136.13,6.6129]
[1767636116741,0.40615534,136.21,136.11,102.8806]
[1767636116940,93.81425534,136.24,136.16,6.6114]
[1767636117347,87.20615534,136.24,136.14,6.73510226]
[1767636117550,87.20615534,136.24,136.17,6.6108]
[1767636117750,86.8,136.24,136.16,6.73510226]
[1767636118453,7.01245534,136.27,136.18,6.6103]
[1767636118955,0.40615534,136.27,136.17,102.8334]
[1767636119259,86.8,136.28,136.18,109.56410226]
[1767636119558,0.40615534,136.27,136.19,6.73510226]
[1767636120149,86.8,136.28,136.19,6.73510226]
[1767636120454,0.40615534,136.3,136.19,6.73510226]
[1767636120654,87.20615534,136.3,136.19,6.73510226]
[1767636121256,6.6053,136.29,136.19,13.34480226]
[1767636121444,6.6053,136.29,136.19,6.6097]
[1767636122158,87.20615534,136.3,136.2,6.6093]
[1767636122455,87.20615534,136.3,136.19,6.73510226]
[1767636122856,93.81095534,136.3,136.21,6.6089]
[1767636123555,0.40615534,136.3,136.2,109.54580226]
[1767636123753,0.40615534,136.3,136.21,6.73510226]
[1767636124659,0.40615534,136.3,136.21,13.34400226]
[1767636124860,0.40615534,136.3,136.21,6.6089]
[1767636125061,86.78,136.32,136.22,6.73510226]
[1767636125955,0.39348088,136.31,136.21,6.73510226]
[1767636126151,0.39348088,136.25,136.18,6.70977664]
[1767636126357,86.76,136.27,136.15,102.8527]
[1767636126861,0.39348088,136.31,136.19,102.8185]
[1767636127062,87.15348088,136.31,136.18,102.8277]
[1767636127364,0.39348088,136.27,136.16,86.76]
[1767636128463,7.00088088,136.25,136.15,6.6117]
[1767636128660,0.39348088,136.24,136.13,102.8685]
[1767636129257,0.39348088,136.24,136.14,102.8561]
[1767636129463,86.76,136.26,136.14,102.8561]
[1767636129859,87.15348088,136.26,136.14,102.8561]
[1767636130062,0.39348088,136.25,136.13,6.6125]
[1767636130366,0.39348088,136.25,136.1,102.8892]
[1767636130367,0.39348088,136.23,136.1,198.62933635]
[1767636130561,0.39348088,136.23,136.1,189.6492]
[1767636130762,7.00268088,136.21,136.12,6.6131]
[1767636130961,0.39348088,136.21,136.1,86.76]
[1767636131370,6.6097,136.2,136.11,6.6137]
[1767636131959,0.39348088,136.21,136.11,6.6137]
[1767636132564,0.39348088,136.2,136.11,6.6137]
[1767636133361,87.15348088,136.2,136.11,6.6137]
[1767636133970,87.15348088,136.2,136.1,86.76]
[1767636133971,87.15348088,136.2,136.12,6.6131]
[1767636134856,0.39348088,136.2,136.12,6.6131]
[1767636135059,0.39348088,136.23,136.12,102.8749]
[1767636136767,0.39348088,136.23,136.14,6.6123]
[1767636137270,0.39348088,136.23,136.14,102.8606]
[1767636137469,0.39348088,136.26,136.15,102.8533]
[1767636137663,87.15348088,136.26,136.15,102.8533]
[1767636138169,0.39348088,136.25,136.17,6.6108]
[1767636143375,0.39348088,136.25,136.18,6.6103]
[1767636144879,102.7286,136.32,136.18,6.6103]
[1767636144880,0.39348088,136.28,136.18,102.8305]
[1767636145071,6.99828088,136.3,136.19,102.8199]
[1767636145271,0.39348088,136.3,136.19,102.8199]
[1767636145677,0.39348088,136.3,136.23,6.608]
[1767636147077,0.39348088,136.3,136.17,102.8369]
[1767636147078,0.39348088,136.29,136.17,102.8369]
[1767636147278,0.39348088,136.29,136.18,102.8307]
[1767636147577,0.39348088,136.29,136.19,102.823]
[1767636148577,0.39348088,136.29,136.22,6.6085]
[1767636149376,86.74,136.31,136.21,102.8011]
[1767636149581,87.13348088,136.31,136.2,86.74]
[1767636149783,0.39348088,136.3,136.2,86.74]
[1767636150282,86.74,136.31,136.19,6.6097]
[1767636150283,0.39348088,136.28,136.19,6.6097]
[1767636150782,0.39348088,136.28,136.17,86.74]
[1767636150977,7.02031624,136.26,136.17,6.6106]
[1767636151673,6.6072,136.25,136.17,6.6106]
[1767636152980,7.02071624,136.25,136.17,6.6106]
[1767636154677,7.02071624,136.25,136.18,6.6104]
[1767636154678,0.41351624,136.25,136.18,6.6104]
[1767636156286,0.41351624,136.28,136.17,102.838]
[1767636156485,0.41351624,136.31,136.19,102.823]
[1767636156897,0.41351624,136.31,136.21,102.8077]
[1767636157184,0.41351624,136.31,136.2,102.8123]
[1767636157391,7.01771624,136.31,136.23,6.608]
[1767636159476,0.41351624,136.31,136.24,6.6075]
[1767636159882,0.41351624,136.31,136.2,102.8123]
[1767636160087,0.41351624,136.31,136.2,111.79243635]
[1767636160486,86.74,136.32,136.24,6.6075]
[1767636160686,86.74,136.32,136.22,102.8004]
[1767636161594,86.74,136.32,136.25,6.6071]
[1767636161888,86.74,136.32,136.23,102.7914]
[1767636162089,86.74,136.32,136.24,102.7845]
[1767636162892,86.74,136.32,136.24,111.76463635]
[1767636163092,86.74,136.32,136.27,6.6058]
[1767636165094,86.74,136.32,136.28,6.6055]
[1767636165297,0.41351624,136.34,136.28,6.6055]
[1767636165696,0.41351624,136.41,136.27,102.7614]
[1767636166002,0.41351624,136.39,136.27,102.7614]
[1767636166197,0.41351624,136.39,136.3,6.6045]
[1767636166397,0.41351624,136.39,136.28,189.4739]
[1767636167196,0.41351624,136.39,136.32,6.6036]
[1767636170291,86.72,136.4,136.33,6.6029]
[1767636170787,0.41351624,136.42,136.31,102.7298]
[1767636170987,87.11351624,136.42,136.31,102.7298]
[1767636171200,87.11351624,136.42,136.34,6.6026]
[1767636173400,0.41351624,136.42,136.35,6.6021]
[1767636173696,0.4127353,136.44,136.34,102.7078]
[1767636173901,0.4127353,136.44,136.33,193.91782476]
[1767636174500,7.0110353,136.44,136.36,6.6017]
[1767636175004,0.4127353,136.42,136.34,6.6024]
[1767636176596,7.0117353,136.42,136.34,6.6024]
[1767636177602,0.4127353,136.4,136.31,86.68]
[1767636179310,0.4127353,136.4,136.32,6.6036]
[1767636179706,0.4127353,136.4,136.3,102.7373]
[1767636180611,7.0114353,136.43,136.31,102.7315]
[1767636180805,0.3961671,136.46,136.34,102.7087]
[1767636181114,0.3961671,136.46,136.35,102.7014]
[1767636181314,0.3961671,136.44,136.36,6.6014]
[1767636182015,0.3961671,136.44,136.33,86.66]
[1767636182206,0.3961671,136.44,136.34,102.7081]
[1767636182407,0.3961671,136.44,136.35,102.7015]
[1767636183117,0.3961671,136.44,136.34,102.7081]
[1767636184211,6.9945671,136.43,136.33,86.66]
[1767636184712,6.9938671,136.45,136.34,102.706]
[1767636184900,0.3961671,136.45,136.34,102.706]
[1767636185104,87.0561671,136.48,136.37,102.6851]
[1767636185415,87.0561671,136.48,136.38,86.66]
[1767636185612,87.0561671,136.48,136.41,6.5993]
[1767636185814,87.0561671,136.48,136.39,102.6723]
[1767636186016,0.3961671,136.48,136.4,102.6617]
[1767636186210,93.2347,136.51,136.44,6.5978]
[1767636186413,93.6308671,136.51,136.44,6.5978]
[1767636186617,0.3961671,136.5,136.39,102.6723]
[1767636186816,0.3961671,136.49,136.38,86.66]
[1767636187116,0.3961671,136.49,136.38,189.3367]
[1767636187517,0.3961671,136.49,136.41,6.5992]
[1767636187812,0.3961671,136.52,136.41,102.6572]
[1767636188623,0.3961671,136.52,136.38,189.3367]
[1767636188624,0.3961671,136.5,136.38,189.3367]
[1767636188921,87.0361671,136.53,136.41,102.657]
[1767636189116,87.0361671,136.53,136.45,6.597]
[1767636189321,87.0361671,136.53,136.43,102.6412]
[1767636189816,87.0361671,136.53,136.44,102.6316]
[1767636190018,0.3961671,136.56,136.44,102.6316]
[1767636190419,0.3961671,136.56,136.45,102.6241]
[1767636190723,0.3961671,136.56,136.47,102.6121]
[1767636191117,0.3961671,136.56,136.49,6.5954]
[1767636193630,0.3961671,136.56,136.47,6.5961]
[1767636193928,0.3961671,136.56,136.46,189.2394]
[1767636194332,0.3961671,136.55,136.46,93.1967]
[1767636195132,0.3961671,136.54,136.44,6.5976]
[1767636195332,0.3961671,136.54,136.41,86.6]
[1767636195528,0.3961671,136.52,136.41,86.6]
[1767636195730,0.3961671,136.51,136.42,6.5986]
[1767636196238,6.9914671,136.5,136.41,93.1992]
[1767636197327,189.1701,136.53,136.3,6.64494734]
[1767636197328,0.3961671,136.48,136.3,6.64494734]
[1767636197632,0.3961671,136.43,136.32,102.7249]
[1767636198329,0.3961671,136.43,136.34,102.7087]
[1767636198528,0.3961671,136.43,136.33,102.7148]
[1767636198734,0.3961671,136.47,136.35,102.6996]
[1767636198936,86.58,136.46,136.35,102.6996]
[1767636199233,86.9761671,136.46,136.37,6.601]
[1767636199928,86.9761671,136.46,136.35,102.6996]
[1767636199929,93.5733671,136.46,136.35,6.6019]
[1767636200130,0.3961671,136.45,136.33,86.6]
[1767636201234,0.3961671,136.43,136.34,6.6026]
[1767636202439,0.3961671,136.43,136.34,102.7098]